[Event "IV Estrellas 2022"]
[Site "La Palma"]
[Date "2022.08.11"]
[Round "8.9"]
[White "Martinez Reyes, Pedro Ramon"]
[Black "Carraminana Lopez, Luis Antonio"]
[Result "1-0"]
[ECO "C41"]
[WhiteElo "2408"]
[BlackElo "1910"]
[Annotator "TA"]
[PlyCount "97"]
[EventDate "2022.08.06"]
[EventType "swiss"]
[EventCountry "ESP"]
[SourceTitle "playchess.com"]
[Source "ChessBase"]
[SourceQuality "1"]
[TimeControl "5400+30"]

{[%evp 13,97,14,30,13,52,44,64,31,51,15,16,-3,24,-17,22,0,23,9,9,0,13,5,15,21,23,28,30,0,13,23,54,0,0,-28,6,0,15,-38,-29,-41,-13,-43,-19,-10,40,32,34,-60,33,29,67,61,67,14,67,-60,-63,-74,-79,-73,-73,-73,-73,-76,0,0,125,107,118,117,151,157,297,284,493,462,462,150,886,842,2872,327,584,423,554,472]} 1. e4 {[%emt 0:01:44]} e5 {[%emt 0:00:37]} 2. Nf3 {[%emt 0:00:08]} Nc6 {[%emt 0:00:28]} 3. Nc3 {[%emt 0:03:58]} Nf6 {[%emt 0:01:55]} 4. Be2 {[%emt 0:00:02]} Be7 {[%emt 0:05:53]} 5. d4 {[%emt 0:01:05]} exd4 {[%emt 0:12:52]} 6. Nxd4 {[%emt 0:00:17]} O-O {[%emt 0:10:30]} 7. O-O {[%emt 0:00:03]} d6 {[%emt 0:08:09]} 8. Bf4 {[%emt 0:00:58] C41: Philidor Defence.} Ne5 {[%emt 0:10:42]} 9. Qd2 {[%emt 0:00:38]} Re8 {[%emt 0:04:14]} 10. Rfe1 {[%emt 0:00:19] White is slightly better.} Bf8 {[%emt 0:00:59]} 11. Bf1 {[%emt 0:00:14]} c6 {[%emt 0:03:54]} 12. Rad1 {[%emt 0:00:56] [#]} Qb6 $146 {[%emt 0:02:10]} ({Predecessor:} 12... Ng6 13. Be3 Qc7 14. f3 Bd7 15. Bg5 Be7 16. Nf5 Bxf5 17. exf5 Ne5 18. Bxf6 Bxf6 {½-½ (66) Siva,M (2333)-Thrish,K (2168) Mumbai 2019}) 13. b3 {[%emt 0:04:36]} Bd7 {[%emt 0:04:22]} 14. Bg5 {[%emt 0:01:32]} Be7 {[%emt 0:03:30]} 15. Be3 {[%emt 0:05:26] Threatens to win with Nf5.} Qc7 {[%emt 0:06:03]} 16. h3 {[%emt 0:04:52]} Ng6 {[%emt 0:02:10]} 17. Nf5 {[%emt 0:07:07]} Bxf5 {[%emt 0:05:53]} 18. exf5 {[%emt 0:00:02]} Ne5 {[%emt 0:05:07]} 19. Bd4 {[%emt 0:02:22]} Rad8 {[%emt 0:07:37]} 20. a4 {[%emt 0:06:52]} (20. Bxa7 $2 b6 21. Bxb6 (21. f4 $2 Ned7 $19) 21... Qxb6 $19) 20... a6 {[%emt 0:01:05]} 21. Qf4 {[%emt 0:02:37]} Bf8 {[%emt 0:00:50]} 22. Qg3 {[%emt 0:01:08]} (22. Ne4 $14) 22... Ned7 $1 $11 {[%emt 0:00:44]} 23. Bd3 {[%emt 0:03:26]} Qb8 {[%emt 0:00:48]} 24. Ne2 {[%emt 0:06:55][%cal Bc3e2,Be2d4,Bd4f5][%mdl 32]} d5 {[%emt 0:00:26]} 25. Qh4 {[%emt 0:00:21]} (25. Qxb8 $11 Rxb8 26. c3) 25... Bc5 $15 {[%emt 0:00:35]} 26. Bb2 {[%emt 0:00:27]} Qa7 {[%emt 0:01:10]} 27. Nd4 {[%emt 0:00:28]} Rxe1+ {[%emt 0:00:40]} 28. Rxe1 {[%emt 0:00:05]} Re8 {[%emt 0:00:05]} (28... Qb6 $11) 29. Rxe8+ $14 {[%emt 0:07:20]} Nxe8 {[%emt 0:00:05]} 30. f6 {[%emt 0:01:40]} (30. b4 $14 Qb6 31. Nb5 $1 Bxf2+ 32. Qxf2 axb5 33. axb5) 30... Nexf6 {[%emt 0:00:28]} ({Black should play} 30... g6 $1 $15) 31. Nf5 $1 {[%emt 0:00:08]} Bf8 {[%emt 0:00:50]} 32. Qg5 {[%emt 0:00:59][%mdl 1024] Black must now prevent Nh6+. White has compensation.} Kh8 {[%emt 0:00:35] [#]} 33. Qf4 {[%emt 0:07:50]} ({White should try} 33. Nh6 $1 $14) 33... Qb8 {[%emt 0:00:22]} ({Better is} 33... Qa8 $11) 34. Qh4 {[%emt 0:01:13]} (34. Qxb8 $14 Nxb8 35. Nh6 $1) 34... Qe8 $15 {[%emt 0:00:21]} 35. Kf1 {[%emt 0:00:04][%cal Of5h6,Bg1f1,Bf1e1,Be1d1][%mdl 32] Against Qe1+} Qe6 {[%emt 0:00:41]} 36. g4 {[%emt 0:00:45][%cal Of5g7]} Ne5 {[%emt 0:00:35]} 37. Be2 {[%emt 0:00:26]} Ng6 {[%emt 0:00:12]} 38. Qg3 {[%emt 0:00:01]} Ne4 {[%emt 0:00:12]} (38... Qe4 $17 39. Bd3 Qh1+ 40. Ke2 {[#]} Qxh3 $1 41. Qxh3 Nf4+ 42. Ke3 Nxh3 43. Bxf6 gxf6) 39. Qb8 $11 {[%emt 0:02:01][%csl LRb7,LRg7] aiming for Nxg7.} Nd2+ {[%emt 0:01:29]} (39... f6 $11 {keeps the balance.}) 40. Ke1 $16 {[%emt 0:00:02]} Nf3+ {[%emt 0:00:02]} 41. Kd1 {[%emt 0:00:44] Active counter play!} Nfe5 {[%emt 0:00:34]} 42. Qxb7 {[%emt 0:03:15]} (42. f4 $6 Nd7 43. Bxg7+ (43. Qxb7 Nxf4 44. Bf1 h5 $11) 43... Kg8 $14) 42... Nf4 {[%emt 0:00:39]} (42... Kg8 $16 {was worth a try.} 43. Qa8 (43. Qxa6 Nf4 $14) 43... Nf4) 43. Qb8 $18 {[%emt 0:02:00][%cal Rb8f8]} ({Don't play} 43. Bxa6 $6 Kg8 $18) (43. Qxa6 Kg8 $16) 43... Neg6 {[%emt 0:00:05]} (43... Nfg6 {keeps fighting.} 44. Bxa6 h5 45. Bxe5 Qxe5 46. Qxe5 Nxe5 47. gxh5 g6) 44. Bxg7+ {[%emt 0:00:22][%cal Bb2g7,Bg7d4,Bd4c5][%mdl 32]} Kg8 {[%emt 0:00:08]} 45. Bf3 $40 {[%emt 0:00:01][%mdl 128] White has strong attack. A strong pair of Bishops.} (45. Bxa6 $18 {Bxf8 is the strong threat.} Nxh3 46. Bd4) 45... Nh5 $2 {[%emt 0:01:12] This move loses the game for Black.} (45... Nxh3 $16 46. Bd4 h6 47. Nxh6+ Kh7) 46. Bd4 {[%emt 0:02:07][%cal Rf5h6]} ({Less strong is} 46. gxh5 Qxf5 47. Bg4 Qxf2 $14) 46... Nf6 {[%emt 0:00:21]} 47. Qd8 $2 {[%emt 0:00:26]} (47. Nh6+ Kg7 48. g5) 47... Ne5 $2 {[%emt 0:00:33]} (47... Ne8 {might work better.} 48. Bc3 h6) 48. Be2 {[%emt 0:00:59]} c5 {[%emt 0:01:07]} 49. Bxc5 {[%emt 0:00:17] Weighted Error Value: White=0.45/Black=0.47} 1-0

[Event "IV Estrellas 2022"]
[Site "La Palma"]
[Date "2022.08.11"]
[Round "8.10"]
[White "Cruz Gomez, Isidro"]
[Black "Roeder, Matthias"]
[Result "0-1"]
[ECO "E11"]
[WhiteElo "2089"]
[BlackElo "2357"]
[Annotator "TA"]
[PlyCount "106"]
[EventDate "2022.08.06"]
[EventType "swiss"]
[EventCountry "ESP"]
[SourceTitle "playchess.com"]
[Source "ChessBase"]
[SourceQuality "1"]
[TimeControl "5400+30"]

{[%evp 17,106,10,4,0,-1,-4,0,0,0,-7,-2,-12,-6,-49,-49,-47,-55,-69,-69,-39,-56,-64,-61,-76,-49,-72,-72,-68,-69,-72,-49,-58,-57,-60,-56,-84,-80,-94,-92,-89,-87,-92,-91,-84,-82,-138,-141,-144,-138,-133,-137,-251,-243,-1887,-1679,-1307,-985,-29972,-293,-287,-285,-285,-272,-293,-293,-285,-285,-511,-504,-1506,-284,-280,-276,-281,-254,-401,-363,-441,-280,-429,-429,-1558,-1202,-866,-381,-425,-412,-29974,-29976,-29974,-6093]} 1. d4 {[%emt 0:00:03]} Nf6 {[%emt 0:00:20]} 2. c4 {[%emt 0:00:35]} e6 {[%emt 0:00:10]} 3. Nf3 {[%emt 0:00:56]} d5 {[%emt 0:01:22]} 4. g3 {[%emt 0:01:02]} Bb4+ {[%emt 0:00:09]} 5. Bd2 {[%emt 0:00:47]} a5 {[%emt 0:00:09]} 6. a3 {[%emt 0:01:14]} Be7 {[%emt 0:03:09]} 7. Qc2 {[%emt 0:00:39]} O-O {[%emt 0:02:42]} 8. Bg2 {[%emt 0:00:10]} c6 {[%emt 0:02:06]} 9. O-O {[%emt 0:00:29]} Nbd7 {[%emt 0:06:04]} 10. Bg5 {[%emt 0:00:44] E11: Bogo-Indian.} b6 {[%emt 0:06:14]} 11. Nbd2 {[%emt 0:00:33]} Ba6 {[%emt 0:02:58]} 12. Rfc1 {[%emt 0:01:56] The position is equal.} Rc8 {[%emt 0:03:04] [#]} 13. e4 $146 {[%emt 0:00:59]} ({Predecessor:} 13. Qd1 h6 14. Bxf6 gxf6 15. e3 Kg7 16. Bf1 Nb8 17. cxd5 cxd5 18. Rxc8 Qxc8 19. Rc1 {1-0 (40) Iskusnyh,S (2473)-Okike,D (2177) Chess.com INT 2021}) 13... dxe4 {[%emt 0:06:49]} 14. Nxe4 {[%emt 0:00:15]} c5 {[%emt 0:00:19]} 15. dxc5 {[%emt 0:06:48]} (15. Nxf6+ {with more complications.} Bxf6 16. Bxf6 Nxf6 17. Rd1) 15... Nxe4 {[%emt 0:02:04]} 16. Bxe7 {[%emt 0:02:34]} Qxe7 {[%emt 0:00:09]} 17. Qxe4 {[%emt 0:00:05]} Nxc5 {[%emt 0:02:16]} 18. Qe3 {[%emt 0:00:28]} a4 {[%emt 0:00:07] Strongly threatening ...Nb3.} 19. Nd2 {[%emt 0:00:35] Against Nb3} Rfd8 {[%emt 0:03:01]} 20. Rc3 {[%emt 0:00:44] Against Rd3} Bb7 {[%emt 0:03:03]} 21. b4 {[%emt 0:04:19]} axb3 $1 {[%emt 0:01:20]} 22. Nxb3 {[%emt 0:00:21]} Bxg2 {[%emt 0:02:16]} 23. Nxc5 {[%emt 0:02:47]} Bc6 {[%emt 0:12:30]} ({Reject} 23... bxc5 24. Kxg2 e5 25. a4 $11) 24. Nd3 {[%emt 0:01:14]} Ba8 {[%emt 0:01:06]} 25. Rb1 {[%emt 0:02:48]} Rd6 {[%emt 0:04:31]} 26. Ne1 {[%emt 0:02:31] White is now going downhill.} (26. Rxb6 $2 Rxb6 27. Qxb6 Qf6 $19) 26... Qc7 {[%emt 0:01:49]} 27. c5 {[%emt 0:02:43]} bxc5 {[%emt 0:02:11]} 28. Rxc5 {[%emt 0:00:24] [#]} Rc6 $40 {[%emt 0:00:06][%mdl 128] Black is out for blood.} 29. Rxc6 {[%emt 0:01:24]} Qxc6 {[%emt 0:00:06][%csl Ga8][%cal Rc6h1]} 30. f3 {[%emt 0:00:05]} h6 {[%emt 0:00:12]} 31. Qb6 {[%emt 0:01:27]} (31. Rb2 $142) 31... Qc3 $17 {[%emt 0:00:11][%csl LRa3,LRf3]} 32. Qb3 {[%emt 0:01:29] Hoping for Qxc3.} Qd4+ {[%emt 0:01:12]} 33. Kg2 {[%emt 0:01:04]} Bd5 {[%emt 0:00:08] Black is much more active.} 34. Rd1 {[%emt 0:01:48] Inhibits Qd2+.} (34. Qb2 $17 {was worth a try.} Qe3 35. a4) 34... Qe5 $19 {[%emt 0:00:33]} ({Inferior is} 34... Bxb3 35. Rxd4 Ra8 36. Kh3 $17) 35. Qa4 {[%emt 0:11:44]} (35. Qd3) 35... Qe2+ {[%emt 0:04:05]} 36. Kg1 {[%emt 0:00:36]} Qe3+ {[%emt 0:02:38]} 37. Kh1 {[%emt 0:03:15]} Bxf3+ $2 {[%emt 0:01:37]} (37... Qf2 {mates} 38. h3 Rc3 39. Qf4 Qf1+ 40. Kh2 Qe2+ 41. Kg1 Qxd1 42. Kf2 Rxa3 43. Qb8+ Kh7 44. Qb2 Ra2 45. Qxa2 Qd4+ 46. Ke2 Bxa2 47. g4 Bc4+ 48. Nd3 Qxd3+ 49. Kf2 Qe2+ 50. Kg3 Qe1+ 51. Kh2 Qf2+ 52. Kh1 Bd5 53. h4 Bxf3#) 38. Nxf3 {[%emt 0:00:21]} Qxf3+ {[%emt 0:00:05][%mdl 4096] Endgame KQR-KQR} 39. Kg1 {[%emt 0:00:04]} Ra8 {[%emt 0:00:10]} 40. Qd7 {[%emt 0:01:02]} Qxa3 {[%emt 0:00:09]} 41. Kg2 {[%emt 0:00:50]} Qa4 {[%emt 0:00:16]} 42. Qd3 $2 {[%emt 0:00:44]} (42. Qd2 {might work better.}) 42... Qc6+ {[%emt 0:00:13]} 43. Kh3 {[%emt 0:00:25]} (43. Kf2 $142 Ra2+ 44. Rd2) 43... Rc8 $2 {[%emt 0:00:22]} (43... Ra2 {( -> ...Qg2+)} 44. Rd2 Rxd2 45. Qxd2 Qf3) 44. Rd2 {[%emt 0:00:56] Inhibits Qg2+.} g6 {[%emt 0:03:01]} 45. Qe3 {[%emt 0:00:14]} h5 {[%emt 0:02:23][%cal Bh6h5,Bh5h4][%mdl 32]} 46. Qe5 {[%emt 0:01:15]} (46. Qf4 {was called for.}) 46... Qf3 {[%emt 0:00:32]} 47. Qe1 {[%emt 0:01:42] Inhibits Qf1+.} Qg4+ {[%emt 0:00:31]} 48. Kg2 {[%emt 0:00:06]} h4 {[%emt 0:00:16] And now ...h3+ would win.} 49. Rf2 {[%emt 0:01:45]} (49. Kg1 $142) 49... Rc4 {[%emt 0:02:42] White must now prevent ...h3+.} 50. Qd2 {[%emt 0:00:48]} Qe4+ {[%emt 0:03:48]} (50... Rd4 $142 51. Qe3 e5) 51. Kh3 {[%emt 0:03:28] aiming for Qd8+.} Rd4 {[%emt 0:00:16] Inhibits Qd8+.} (51... Qg4+ 52. Kg2 Rd4 53. Qe3 h3+ 54. Kg1 Rd1+ 55. Rf1 Rxf1+ 56. Kxf1 Qd1+ 57. Qe1 Qxe1+ 58. Kxe1) 52. Qg5 {[%emt 0:00:26] [#]} (52. Qf4 $19 Qxf4 53. gxf4) 52... hxg3 {[%emt 0:00:27]} 53. hxg3 {[%emt 0:01:41]} Rd5 {[%emt 0:00:47] Weighted Error Value: White=0.96/Black=0.49} 0-1

[Event "IV Estrellas 2022"]
[Site "La Palma"]
[Date "2022.08.11"]
[Round "8.11"]
[White "Hernandez Leon, Sergio"]
[Black "Capote Robayna, Nathaniel"]
[Result "1-0"]
[ECO "B30"]
[WhiteElo "2094"]
[BlackElo "2150"]
[Annotator "TA"]
[PlyCount "39"]
[EventDate "2022.08.06"]
[EventType "swiss"]
[EventCountry "ESP"]
[SourceTitle "playchess.com"]
[Source "ChessBase"]
[SourceQuality "1"]
[TimeControl "5400+30"]

{[%evp 10,39,37,13,28,31,33,5,0,1,-3,0,2,-8,0,-5,9,9,11,8,22,10,26,11,62,54,52,62,774,733,1148,-108]} 1. e4 {[%emt 0:00:02]} c5 {[%emt 0:00:12]} 2. Nf3 {[%emt 0:00:09]} Nc6 {[%emt 0:00:12]} 3. Bb5 {[%emt 0:00:08]} e6 {[%emt 0:00:09]} 4. O-O {[%emt 0:00:44]} Nge7 {[%emt 0:00:10]} 5. d4 {[%emt 0:00:21]} cxd4 {[%emt 0:00:37]} 6. Nxd4 {[%emt 0:00:06]} Nxd4 {[%emt 0:05:33] 6...Ng6 is becoming the main line. B30: Sicilian: 2...Nc6 3 Bb5, lines without ...g6.} 7. Qxd4 {[%emt 0:00:20]} a6 {[%emt 0:00:14]} 8. Ba4 {[%emt 0:02:03]} b5 {[%emt 0:00:56] The position is equal.} 9. Bb3 {[%emt 0:00:05]} Nc6 {[%emt 0:00:55]} 10. Qd3 {[%emt 0:03:39]} Qc7 {[%emt 0:03:59]} 11. Nc3 {[%emt 0:14:32]} Bc5 {[%emt 0:10:04]} 12. Be3 {[%emt 0:13:14]} Bxe3 {[%emt 0:09:05]} 13. Qxe3 {[%emt 0:07:27]} O-O {[%emt 0:00:53] [#]} 14. Rad1 $146 {[%emt 0:03:10]} ({Predecessor:} 14. a3 d6 15. Rad1 Rd8 16. f4 Rb8 17. f5 Qb6 18. Qxb6 Rxb6 19. fxe6 fxe6 20. Rd2 {1-0 (31) Bladyko,P (1261)-Sanchez Redondo,J (1186) IECC email 2002}) 14... Rd8 {[%emt 0:05:53]} 15. f4 {[%emt 0:02:33]} d6 {[%emt 0:10:59]} 16. Kh1 {[%emt 0:06:39]} Na5 {[%emt 0:05:22]} (16... Rb8 $11) 17. f5 $14 {[%emt 0:04:48] [#] Threatens to win with f6. White is more active.} Nxb3 {[%emt 0:10:17]} 18. f6 {[%emt 0:19:01]} gxf6 {[%emt 0:04:46][%mdl 8192]} 19. Qh6 $18 {[%emt 0:02:22] White wants to mate with Rd3.} f5 {[%emt 0:05:03]} 20. Qe3 $2 {[%emt 0:19:07][%mdl 32768] Weighted Error Value: White=0.07 (flawless) /Black=0.18 (very precise) . Loss on time!?} ({Better is} 20. Rd3 $18 d5 21. Rff3) 1-0

[Event "IV Estrellas 2022"]
[Site "La Palma"]
[Date "2022.08.11"]
[Round "8.12"]
[White "Baeza Escudero, Javier"]
[Black "Acosta Sosa, Juan Manuel"]
[Result "0-1"]
[ECO "B70"]
[WhiteElo "1861"]
[BlackElo "2310"]
[Annotator "TA"]
[PlyCount "82"]
[EventDate "2022.08.06"]
[EventType "swiss"]
[EventCountry "ESP"]
[SourceTitle "playchess.com"]
[Source "ChessBase"]
[SourceQuality "1"]
[TimeControl "5400+30"]

{[%evp 19,82,-4,8,0,0,-18,-14,-26,-25,-40,-28,-57,-48,-47,-33,-66,-45,-55,-63,-70,-75,-72,-64,-65,-65,-62,-60,-71,-61,-106,-92,-94,-73,-74,-79,-101,-89,-100,-83,-83,-76,-87,-76,-105,-81,-113,-77,-102,-94,-124,-46,-254,-270,-264,-239,-246,-258,-852,-834,-870,-705,-653,-622,-579,-475]} 1. e4 {[%emt 0:04:24]} c5 {[%emt 0:00:08]} 2. Nf3 {[%emt 0:00:08]} Nc6 {[%emt 0:00:07]} 3. d4 {[%emt 0:00:08]} cxd4 {[%emt 0:00:09]} 4. Nxd4 {[%emt 0:00:10]} g6 {[%emt 0:00:08]} 5. Nc3 {[%emt 0:00:19]} Bg7 {[%emt 0:00:09]} 6. Be3 {[%emt 0:00:08]} Nf6 {[%emt 0:00:08][%cal Bg8f6,Bf6g4,Bg4e5,Be5c4][%mdl 32]} 7. Bc4 {[%emt 0:00:33]} O-O {[%emt 0:00:10]} 8. O-O {[%emt 0:00:31]} d6 {[%emt 0:00:15]} 9. Bb3 {[%emt 0:01:54]} Ng4 {[%emt 0:01:29]} 10. Nxc6 {[%emt 0:01:35]} bxc6 {[%emt 0:00:08]} 11. Bd2 {[%emt 0:00:51] B70: Sicilian Dragon: 6 g3 and 6 Be2 (without a later Be3).} Ne5 {[%emt 0:02:28]} 12. h3 {[%emt 0:04:46]} Ba6 {[%emt 0:00:45]} 13. Re1 {[%emt 0:02:18] The position is equal.} Rb8 {[%emt 0:01:20] [#]} 14. Bc1 $146 {[%emt 0:13:28]} ({Predecessor:} 14. f4 Nc4 15. Bxc4 Bxc4 16. b3 Ba6 17. Rc1 Bd4+ 18. Kh1 Bf2 19. f5 Bxe1 20. Qxe1 {0-1 (38) Toenniges,T (2133)-Fronczek,H (2288) Bad Wildbad 2001}) 14... Qa5 {[%emt 0:02:04]} 15. f4 {[%emt 0:05:49]} Nc4 {[%emt 0:00:35][%cal Oc4b2]} 16. Qf3 {[%emt 0:01:09]} e6 {[%emt 0:07:45]} 17. Rd1 {[%emt 0:08:10]} Rfd8 {[%emt 0:02:59] Black is more active.} 18. Kh1 {[%emt 0:05:57]} d5 {[%emt 0:05:12]} 19. Bxc4 {[%emt 0:03:27]} Bxc4 {[%emt 0:00:38]} 20. e5 {[%emt 0:00:27]} c5 {[%emt 0:01:52]} (20... f6 {with more complications.} 21. exf6 Bxf6 22. Bd2 Rxb2 23. Ne4 dxe4 24. Bxa5 exf3 25. Bxd8 fxg2+ 26. Kh2 Bc3) 21. b3 {[%emt 0:06:21]} Ba6 {[%emt 0:01:09]} 22. Bd2 {[%emt 0:01:02][%cal Oc3d5]} Qc7 {[%emt 0:00:30]} 23. Rab1 {[%emt 0:05:14]} Bf8 {[%emt 0:03:08]} 24. a3 {[%emt 0:09:58]} Bb7 {[%emt 0:01:13]} 25. Qe2 {[%emt 0:03:03]} a6 {[%emt 0:01:49]} 26. Be1 {[%emt 0:03:35]} Qc6 {[%emt 0:00:27]} 27. Qf3 {[%emt 0:03:23]} Be7 {[%emt 0:04:38]} 28. Ne2 {[%emt 0:03:39]} Qb5 {[%emt 0:03:40]} 29. Nc3 {[%emt 0:01:20]} Qb6 {[%emt 0:01:16]} 30. Qe2 {[%emt 0:01:01]} Rf8 {[%emt 0:02:08]} 31. Bf2 {[%emt 0:01:18]} Qc6 {[%emt 0:00:46] [#] White must now prevent ...d4.} 32. Qf3 {[%emt 0:00:28]} Rbc8 {[%emt 0:02:51]} 33. Ne2 {[%emt 0:02:03]} Qc7 {[%emt 0:00:42]} 34. Qg3 {[%emt 0:01:38]} f6 {[%emt 0:00:33]} (34... d4 $17 35. Rd2 Be4) 35. Ng1 $2 {[%emt 0:02:18] This move loses the game for White.} ({Better is} 35. exf6 $15 Rxf6 36. Re1) 35... fxe5 $19 {[%emt 0:00:41]} 36. fxe5 {[%emt 0:00:06]} Rf5 {[%emt 0:00:16] aiming for ...d4.} 37. Nf3 {[%emt 0:00:28]} Rcf8 {[%emt 0:00:16][%cal Of5f3]} 38. Re1 $2 {[%emt 0:00:55]} (38. Rd3) 38... d4 {[%emt 0:00:23][%cal Rb7f3] Black is clearly winning.} 39. Qg4 {[%emt 0:01:47]} Rxf3 {[%emt 0:00:24]} 40. Qxe6+ {[%emt 0:00:31]} R3f7 {[%emt 0:00:09] [#] And now ...Kg7 would win.} 41. Bg3 {[%emt 0:01:08]} Qc6 {[%emt 0:00:19] Weighted Error Value: White=0.39/Black=0.18 (very precise)} 0-1

[Event "IV Estrellas 2022"]
[Site "La Palma"]
[Date "2022.08.11"]
[Round "8.13"]
[White "Marin Dorta, Alejandro"]
[Black "Cubas Cabrera, Angel Luis"]
[Result "0-1"]
[ECO "C67"]
[WhiteElo "1869"]
[BlackElo "2207"]
[Annotator "TA"]
[PlyCount "72"]
[EventDate "2022.08.06"]
[EventType "swiss"]
[EventCountry "ESP"]
[SourceTitle "playchess.com"]
[Source "ChessBase"]
[SourceQuality "1"]
[TimeControl "5400+30"]

{[%evp 16,72,17,14,16,13,25,28,36,33,32,35,34,31,22,15,23,8,15,0,0,-10,0,-7,0,0,14,-26,-22,-35,-34,-32,-32,-32,-29,-32,-29,-30,-30,-30,-30,-39,-33,-125,-120,-121,-133,-125,-123,-278,-283,-280,-270,-237,-234,-337,-322,-250,-126]} 1. e4 {[%emt 0:00:03]} e5 {[%emt 0:00:07]} 2. Nf3 {[%emt 0:00:42]} Nc6 {[%emt 0:00:06]} 3. Bb5 {[%emt 0:00:38]} Nf6 {[%emt 0:00:07]} 4. O-O {[%emt 0:00:38][%cal Bh1f1,Bf1e1,Be1e5][%mdl 32]} Nxe4 {[%emt 0:00:08]} 5. Re1 {[%emt 0:00:18]} Nd6 {[%emt 0:00:38]} 6. Nxe5 {[%emt 0:00:20]} Nxe5 {[%emt 0:00:21]} 7. Rxe5+ {[%emt 0:00:11]} Be7 {[%emt 0:00:03]} 8. Bf1 {[%emt 0:00:38]} O-O {[%emt 0:00:25]} 9. d4 {[%emt 0:00:27]} Ne8 {[%emt 0:05:17] C67: Ruy Lopez: Berlin Defence: 4 0-0 Nxe4.} 10. Nc3 {[%emt 0:02:35]} d6 {[%emt 0:00:22]} 11. Re1 {[%emt 0:00:34]} Bg5 {[%emt 0:00:37] [#] White has an edge.} 12. Bxg5 $146 {[%emt 0:01:04]} ({Predecessor:} 12. Qf3 Bxc1 13. Raxc1 Nf6 14. Bd3 c6 15. d5 c5 16. Ne4 Nxe4 17. Qxe4 g6 18. h4 {½-½ (39) Siva,M (2349)-Vidit,S (2726) Chess.com INT 2020}) 12... Qxg5 {[%emt 0:00:02]} 13. Ne4 {[%emt 0:04:24]} Qd8 {[%emt 0:02:10]} 14. Qd2 {[%emt 0:02:41]} Bf5 {[%emt 0:07:49]} 15. Ng3 {[%emt 0:01:08]} Bg6 {[%emt 0:00:22]} 16. Bd3 {[%emt 0:03:09]} d5 {[%emt 0:21:12]} 17. Bxg6 {[%emt 0:08:33]} hxg6 {[%emt 0:00:29]} 18. Qe3 {[%emt 0:02:06]} c6 {[%emt 0:03:56]} 19. c3 {[%emt 0:04:46]} Qb6 {[%emt 0:02:34]} 20. Re2 {[%emt 0:01:54]} a5 {[%emt 0:04:39]} 21. b3 {[%emt 0:05:38]} Nd6 {[%emt 0:06:20][%cal Be8d6,Bd6b5,Bb5d4][%mdl 32]} 22. Qd3 {[%emt 0:11:40]} a4 {[%emt 0:04:16]} 23. Rb1 {[%emt 0:01:53]} axb3 {[%emt 0:02:20]} 24. axb3 {[%emt 0:01:26]} Ra3 {[%emt 0:02:08]} 25. Reb2 {[%emt 0:10:02]} Qa5 {[%emt 0:07:13]} 26. Qc2 {[%emt 0:10:17]} Nb5 {[%emt 0:02:55]} 27. Ne2 {[%emt 0:01:41]} Re8 {[%emt 0:00:59]} 28. Kf1 {[%emt 0:09:28]} Ra1 {[%emt 0:03:07]} 29. c4 {[%emt 0:02:07] [#]} (29. Qd2 $15) 29... Nxd4 $1 $17 {[%emt 0:00:38][%mdl 512]} 30. Rxa1 {[%emt 0:01:31]} Qxa1+ {[%emt 0:00:27]} 31. Qc1 {[%emt 0:00:16]} Qa7 {[%emt 0:03:57] Strongly threatening ...Nxe2. 0x0.0023611a0dd9dp-1022s more active pieces.} 32. cxd5 $2 {[%emt 0:02:06] Now White is beyond hope.} (32. Nxd4 $17 Qxd4 33. cxd5) 32... Nxe2 $19 {[%emt 0:03:05]} ({Weaker is} 32... cxd5 33. Nxd4 Qxd4 34. Qd2 $17) 33. Rxe2 {[%emt 0:00:33]} Qa6 {[%emt 0:00:09]} 34. Qd1 {[%emt 0:02:57]} cxd5 {[%emt 0:00:11]} 35. Ke1 {[%emt 0:00:47]} (35. f3 $142) 35... Rxe2+ {[%emt 0:01:15]} 36. Qxe2 {[%emt 0:00:05]} Qa1+ {[%emt 0:00:09] Weighted Error Value: White=0.21 (precise) /Black=0.03 (flawless)} 0-1